[Event "January 9 Early 2024"]
[Site "https://www.chess.com"]
[Date "2024.01.11"]
[Round "3"]
[White "Vargas, Mauricio"]
[Black "Fernandez Hernandez, Gerardo"]
[Result "0-1"]
[Board "54"]
[TimeControl "180+1"]
[WhiteFideId "4404572"]
[BlackFideId "2207400"]
[WhiteElo "1841"]
[BlackElo "2317"]
[WhiteTeam "COL"]
[BlackTeam "ESP"]
[WhiteClock "0:00:56"]
[BlackClock "0:01:09"]

1. e4 {[%clk 0:03:00]}  e6 {[%clk 0:02:59]} 2. f4 {[%clk 0:03:00]}  d5 {[%clk 0:02:59]} 3. e5 {[%clk 0:03:00]}  c5 {[%clk 0:02:59]} 4. Nf3 {[%clk 0:03:01]}  Nc6 {[%clk 0:02:59]} 5. Bb5 {[%clk 0:02:59]}  Bd7 {[%clk 0:02:59]} 6. Bxc6 {[%clk 0:03:00]}  Bxc6 {[%clk 0:02:58]} 7. O-O {[%clk 0:03:01]}  h5 {[%clk 0:02:53]} 8. d3 {[%clk 0:03:02]}  Nh6 {[%clk 0:02:53]} 9. Qe1 {[%clk 0:03:00]}  Nf5 {[%clk 0:02:50]} 10. Bd2 {[%clk 0:03:00]}  Be7 {[%clk 0:02:49]} 11. Nc3 {[%clk 0:02:56]}  b5 {[%clk 0:02:42]} 12. a4 {[%clk 0:02:52]}  a6 {[%clk 0:02:39]} 13. axb5 {[%clk 0:02:51]}  axb5 {[%clk 0:02:40]} 14. Rxa8 {[%clk 0:02:48]}  Qxa8 {[%clk 0:02:41]} 15. Qf2 {[%clk 0:02:48]}  b4 {[%clk 0:02:35]} 16. Ne2 {[%clk 0:02:42]}  h4 {[%clk 0:02:23]} 17. Rb1 {[%clk 0:02:40]}  Qa2 {[%clk 0:02:20]} 18. Qe1 {[%clk 0:02:26]}  d4 {[%clk 0:02:13]} 19. c3 {[%clk 0:02:18]}  h3 {[%clk 0:02:03]} 20. g4 {[%clk 0:02:14]}  Bxf3 {[%clk 0:02:00]} 21. gxf5 {[%clk 0:02:09]}  Bxe2 {[%clk 0:01:55]} 22. fxe6 {[%clk 0:02:07]}  Bxd3 {[%clk 0:01:47]} 23. Ra1 {[%clk 0:02:06]}  Qd5 {[%clk 0:01:43]} 24. Qg3 {[%clk 0:01:55]}  fxe6 {[%clk 0:01:32]} 25. Qxg7 {[%clk 0:01:45]}  Qg2+ {[%clk 0:01:29]} 26. Qxg2 {[%clk 0:01:44]}  hxg2 {[%clk 0:01:30]} 27. Kxg2 {[%clk 0:01:44]}  dxc3 {[%clk 0:01:29]} 28. bxc3 {[%clk 0:01:43]}  b3 {[%clk 0:01:28]} 29. Ra8+ {[%clk 0:01:42]}  Bd8 {[%clk 0:01:28]} 30. Rb8 {[%clk 0:01:30]}  c4 {[%clk 0:01:22]} 31. Be3 {[%clk 0:01:28]}  Be4+ {[%clk 0:01:16]} 32. Kg3 {[%clk 0:01:16]}  Kd7 {[%clk 0:01:13]} 33. h4 {[%clk 0:00:59]}  Bxh4+ {[%clk 0:01:11]} 34. Kg4 {[%clk 0:00:57]}  Bf5+ {[%clk 0:01:09]} 35. Kf3 {[%clk 0:00:56]}  Rxb8 {[%clk 0:01:09]} 0-1

[Event "January 9 Early 2024"]
[Site "https://www.chess.com"]
[Date "2024.01.11"]
[Round "3"]
[White "Onslow, Alfie"]
[Black "Skiadopoulos, Nikolaos"]
[Result "1-0"]
[Board "58"]
[TimeControl "180+1"]
[WhiteFideId "436976"]
[BlackFideId "4200772"]
[WhiteElo "2327"]
[BlackElo "1937"]
[WhiteTeam "ENG"]
[BlackTeam "GRE"]
[WhiteClock "0:01:01"]
[BlackClock "0:00:28"]

1. e4 {[%clk 0:03:00]}  c5 {[%clk 0:02:59]} 2. Nc3 {[%clk 0:02:50]}  Nc6 {[%clk 0:02:58]} 3. Bb5 {[%clk 0:02:48]}  Na5 {[%clk 0:02:57]} 4. Nf3 {[%clk 0:02:35]}  a6 {[%clk 0:02:56]} 5. Be2 {[%clk 0:02:35]}  Nc6 {[%clk 0:02:54]} 6. d4 {[%clk 0:02:32]}  cxd4 {[%clk 0:02:53]} 7. Nxd4 {[%clk 0:02:33]}  Nf6 {[%clk 0:02:45]} 8. O-O {[%clk 0:02:21]}  Nxd4 {[%clk 0:02:28]} 9. Qxd4 {[%clk 0:02:21]}  d6 {[%clk 0:02:24]} 10. f4 {[%clk 0:02:19]}  Bg4 {[%clk 0:02:07]} 11. Bxg4 {[%clk 0:02:05]}  Nxg4 {[%clk 0:02:07]} 12. Nd5 {[%clk 0:02:05]}  e6 {[%clk 0:02:00]} 13. Nb6 {[%clk 0:02:03]}  Rb8 {[%clk 0:01:57]} 14. Qa4+ {[%clk 0:02:02]}  Ke7 {[%clk 0:01:55]} 15. Qb3 {[%clk 0:01:56]}  Qc7 {[%clk 0:01:41]} 16. h3 {[%clk 0:01:50]}  Qc5+ {[%clk 0:01:38]} 17. Kh1 {[%clk 0:01:45]}  Nf2+ {[%clk 0:01:38]} 18. Rxf2 {[%clk 0:01:39]}  Qxf2 {[%clk 0:01:37]} 19. Be3 {[%clk 0:01:40]}  Qg3 {[%clk 0:01:28]} 20. Qc3 {[%clk 0:01:34]}  Kd8 {[%clk 0:01:14]} 21. Rd1 {[%clk 0:01:15]}  Be7 {[%clk 0:01:07]} 22. e5 {[%clk 0:01:15]}  Ke8 {[%clk 0:00:47]} 23. exd6 {[%clk 0:01:12]}  Bf6 {[%clk 0:00:45]} 24. d7+ {[%clk 0:01:07]}  Kd8 {[%clk 0:00:33]} 25. Qc8+ {[%clk 0:01:01]}  Ke7 {[%clk 0:00:28]} 26. Bc5# {[%clk 0:01:01]} 1-0

[Event "January 9 Early 2024"]
[Site "https://www.chess.com"]
[Date "2024.01.11"]
[Round "3"]
[White "Abrosimov, Vladimir"]
[Black "Albuquerque Junior,Wellington S."]
[Result "0-1"]
[Board "60"]
[TimeControl "180+1"]
[WhiteFideId "4166892"]
[BlackFideId "2151480"]
[WhiteElo "2187"]
[BlackElo "2412"]
[WhiteTeam "RUS"]
[BlackTeam "BRA"]
[WhiteClock "0:00:51"]
[BlackClock "0:00:56"]

1. c4 {[%clk 0:03:00]}  Nf6 {[%clk 0:02:59]} 2. Nc3 {[%clk 0:03:00]}  c5 {[%clk 0:03:00]} 3. g3 {[%clk 0:03:00]}  g6 {[%clk 0:03:00]} 4. Bg2 {[%clk 0:03:00]}  Bg7 {[%clk 0:03:01]} 5. d3 {[%clk 0:03:01]}  O-O {[%clk 0:03:01]} 6. e4 {[%clk 0:03:01]}  d6 {[%clk 0:03:02]} 7. Nge2 {[%clk 0:03:02]}  Nc6 {[%clk 0:03:03]} 8. O-O {[%clk 0:03:02]}  Ne8 {[%clk 0:03:03]} 9. f4 {[%clk 0:03:03]}  Nc7 {[%clk 0:03:04]} 10. f5 {[%clk 0:03:02]}  Bd7 {[%clk 0:03:03]} 11. h3 {[%clk 0:03:01]}  Rb8 {[%clk 0:03:04]} 12. a4 {[%clk 0:03:01]}  a6 {[%clk 0:03:04]} 13. g4 {[%clk 0:03:01]}  b5 {[%clk 0:03:04]} 14. axb5 {[%clk 0:03:01]}  axb5 {[%clk 0:03:04]} 15. Rb1 {[%clk 0:02:36]}  bxc4 {[%clk 0:02:49]} 16. dxc4 {[%clk 0:02:37]}  Na6 {[%clk 0:02:27]} 17. Be3 {[%clk 0:02:32]}  Nab4 {[%clk 0:02:20]} 18. Nd5 {[%clk 0:02:25]}  Ne5 {[%clk 0:02:12]} 19. b3 {[%clk 0:02:21]}  e6 {[%clk 0:01:44]} 20. f6 {[%clk 0:02:13]}  exd5 {[%clk 0:01:44]} 21. fxg7 {[%clk 0:02:13]}  Kxg7 {[%clk 0:01:45]} 22. exd5 {[%clk 0:02:05]}  f5 {[%clk 0:01:44]} 23. Nf4 {[%clk 0:01:53]}  fxg4 {[%clk 0:01:41]} 24. hxg4 {[%clk 0:01:54]}  Nxg4 {[%clk 0:01:26]} 25. Bd2 {[%clk 0:01:46]}  Qh4 {[%clk 0:01:22]} 26. Bc3+ {[%clk 0:01:38]}  Kg8 {[%clk 0:01:20]} 27. Nh3 {[%clk 0:01:27]}  Qg3 {[%clk 0:01:19]} 28. Rf3 {[%clk 0:01:20]}  Qh2+ {[%clk 0:01:07]} 29. Kf1 {[%clk 0:01:19]}  Bf5 {[%clk 0:01:00]} 30. Qe2 {[%clk 0:01:03]}  Bd3 {[%clk 0:00:59]} 31. Bxb4 {[%clk 0:00:50]}  Bxe2+ {[%clk 0:00:56]} 32. Kxe2 {[%clk 0:00:51]}  Qxg2+ {[%clk 0:00:56]} 0-1

[Event "January 9 Early 2024"]
[Site "https://www.chess.com"]
[Date "2024.01.11"]
[Round "3"]
[White "Azar, Sebastien"]
[Black "Al-Tarboush, Ward"]
[Result "0-1"]
[Board "62"]
[TimeControl "180+1"]
[WhiteFideId "2640198"]
[BlackFideId "7601450"]
[WhiteElo "2434"]
[BlackElo "2635"]
[WhiteTeam "CAN"]
[BlackTeam "NOR"]
[WhiteClock "0:00:46"]
[BlackClock "0:01:22"]

1. e4 {[%clk 0:02:03]}  e6 {[%clk 0:02:59]} 2. d4 {[%clk 0:02:04]}  d5 {[%clk 0:02:59]} 3. Nc3 {[%clk 0:02:04]}  Nf6 {[%clk 0:03:00]} 4. e5 {[%clk 0:02:03]}  Nfd7 {[%clk 0:03:00]} 5. f4 {[%clk 0:02:02]}  c5 {[%clk 0:03:00]} 6. Nf3 {[%clk 0:02:03]}  Nc6 {[%clk 0:03:00]} 7. Bb5 {[%clk 0:02:03]}  a6 {[%clk 0:02:53]} 8. Bxc6 {[%clk 0:02:03]}  bxc6 {[%clk 0:02:54]} 9. O-O {[%clk 0:02:02]}  cxd4 {[%clk 0:02:54]} 10. Nxd4 {[%clk 0:02:03]}  c5 {[%clk 0:02:54]} 11. Nde2 {[%clk 0:02:01]}  g6 {[%clk 0:02:51]} 12. Ng3 {[%clk 0:01:40]}  Bg7 {[%clk 0:02:51]} 13. Nce2 {[%clk 0:01:39]}  O-O {[%clk 0:02:50]} 14. c3 {[%clk 0:01:39]}  a5 {[%clk 0:02:49]} 15. Re1 {[%clk 0:01:38]}  Ba6 {[%clk 0:02:49]} 16. Be3 {[%clk 0:01:38]}  Rb8 {[%clk 0:02:49]} 17. Qd2 {[%clk 0:01:38]}  Qb6 {[%clk 0:02:48]} 18. b3 {[%clk 0:01:37]}  Rfd8 {[%clk 0:02:38]} 19. Rad1 {[%clk 0:01:37]}  f5 {[%clk 0:02:36]} 20. exf6 {[%clk 0:01:34]}  Nxf6 {[%clk 0:02:37]} 21. h3 {[%clk 0:01:31]}  Qc6 {[%clk 0:02:36]} 22. Bf2 {[%clk 0:01:29]}  a4 {[%clk 0:02:32]} 23. Nc1 {[%clk 0:01:26]}  axb3 {[%clk 0:02:28]} 24. axb3 {[%clk 0:01:27]}  Re8 {[%clk 0:02:14]} 25. Nd3 {[%clk 0:01:26]}  Bxd3 {[%clk 0:02:12]} 26. Qxd3 {[%clk 0:01:27]}  Rxb3 {[%clk 0:02:13]} 27. Qe3 {[%clk 0:01:16]}  d4 {[%clk 0:02:07]} 28. Qe2 {[%clk 0:01:08]}  Rxc3 {[%clk 0:02:04]} 29. Rc1 {[%clk 0:01:05]}  Rxc1 {[%clk 0:02:02]} 30. Rxc1 {[%clk 0:01:06]}  Nd5 {[%clk 0:02:02]} 31. Qe4 {[%clk 0:01:02]}  Qd6 {[%clk 0:01:51]} 32. Ne2 {[%clk 0:01:00]}  Nf6 {[%clk 0:01:44]} 33. Qf3 {[%clk 0:00:58]}  Rd8 {[%clk 0:01:34]} 34. g3 {[%clk 0:00:57]}  d3 {[%clk 0:01:31]} 35. Nc3 {[%clk 0:00:56]}  d2 {[%clk 0:01:31]} 36. Rd1 {[%clk 0:00:55]}  c4 {[%clk 0:01:30]} 37. Be3 {[%clk 0:00:52]}  Nd5 {[%clk 0:01:28]} 38. Nxd5 {[%clk 0:00:48]}  Qxd5 {[%clk 0:01:26]} 39. Qxd5 {[%clk 0:00:45]}  Rxd5 {[%clk 0:01:22]} 40. Rxd2 {[%clk 0:00:45]}  Rxd2 {[%clk 0:01:22]} 41. Bxd2 {[%clk 0:00:46]}  Bb2 {[%clk 0:01:22]} 0-1

[Event "January 9 Early 2024"]
[Site "https://www.chess.com"]
[Date "2024.01.11"]
[Round "3"]
[White "Shevchuk, Olexandr"]
[Black "Van Kooten, Luuk"]
[Result "1-0"]
[Board "64"]
[TimeControl "180+1"]
[WhiteFideId "14113775"]
[BlackFideId "1006533"]
[WhiteElo "2496"]
[BlackElo "2273"]
[WhiteTeam "UKR"]
[BlackTeam "NED"]
[WhiteClock "0:01:40"]
[BlackClock "0:00:04"]

1. c4 {[%clk 0:03:00]}  e5 {[%clk 0:02:59]} 2. g3 {[%clk 0:03:01]}  Nf6 {[%clk 0:02:58]} 3. Bg2 {[%clk 0:03:01]}  c6 {[%clk 0:02:58]} 4. Nf3 {[%clk 0:02:59]}  e4 {[%clk 0:02:57]} 5. Nd4 {[%clk 0:02:59]}  d5 {[%clk 0:02:54]} 6. cxd5 {[%clk 0:02:59]}  cxd5 {[%clk 0:02:54]} 7. O-O {[%clk 0:02:58]}  Be7 {[%clk 0:02:53]} 8. b3 {[%clk 0:02:56]}  O-O {[%clk 0:02:53]} 9. Bb2 {[%clk 0:02:57]}  Nc6 {[%clk 0:02:47]} 10. Nxc6 {[%clk 0:02:57]}  bxc6 {[%clk 0:02:47]} 11. d3 {[%clk 0:02:57]}  exd3 {[%clk 0:02:46]} 12. Qxd3 {[%clk 0:02:58]}  Be6 {[%clk 0:02:40]} 13. Nc3 {[%clk 0:02:58]}  Qa5 {[%clk 0:02:29]} 14. Rfd1 {[%clk 0:02:56]}  Rfd8 {[%clk 0:02:27]} 15. Rac1 {[%clk 0:02:56]}  Rac8 {[%clk 0:02:16]} 16. Na4 {[%clk 0:02:56]}  c5 {[%clk 0:02:06]} 17. Qd2 {[%clk 0:02:53]}  Qb5 {[%clk 0:01:58]} 18. e3 {[%clk 0:02:52]}  h6 {[%clk 0:01:52]} 19. Bf1 {[%clk 0:02:41]}  c4 {[%clk 0:01:41]} 20. Nc3 {[%clk 0:02:41]}  Qa5 {[%clk 0:01:34]} 21. Bg2 {[%clk 0:02:28]}  cxb3 {[%clk 0:01:29]} 22. axb3 {[%clk 0:02:28]}  Qb4 {[%clk 0:01:24]} 23. Nxd5 {[%clk 0:02:03]}  Nxd5 {[%clk 0:01:03]} 24. Rxc8 {[%clk 0:02:03]}  Rxc8 {[%clk 0:00:55]} 25. Bxd5 {[%clk 0:02:03]}  Qxd2 {[%clk 0:00:47]} 26. Rxd2 {[%clk 0:02:04]}  Bxd5 {[%clk 0:00:19]} 27. Rxd5 {[%clk 0:02:02]}  Rb8 {[%clk 0:00:18]} 28. Bd4 {[%clk 0:01:43]}  Rb7 {[%clk 0:00:12]} 29. Ra5 {[%clk 0:01:41]}  Rxb3 {[%clk 0:00:10]} 30. Rxa7 {[%clk 0:01:42]}  Rb1+ {[%clk 0:00:05]} 31. Kg2 {[%clk 0:01:42]}  Bb4 {[%clk 0:00:05]} 32. h4 {[%clk 0:01:42]}  h5 {[%clk 0:00:04]} 33. Rb7 {[%clk 0:01:40]} 1-0

[Event "January 9 Early 2024"]
[Site "https://www.chess.com"]
[Date "2024.01.11"]
[Round "3"]
[White "Skurikhin, Dmitrij"]
[Black "Reprintsev, Alexander"]
[Result "0-1"]
[Board "65"]
[TimeControl "180+1"]
[WhiteFideId "4161297"]
[BlackFideId "14100541"]
[WhiteElo "2177"]
[BlackElo "2463"]
[WhiteTeam "RUS"]
[BlackTeam "UKR"]
[WhiteClock "0:01:11"]
[BlackClock "0:00:20"]

1. d4 {[%clk 0:02:58]}  d5 {[%clk 0:02:56]} 2. Nf3 {[%clk 0:02:57]}  Nc6 {[%clk 0:02:55]} 3. c4 {[%clk 0:02:57]}  e5 {[%clk 0:02:51]} 4. cxd5 {[%clk 0:02:53]}  Qxd5 {[%clk 0:02:43]} 5. e3 {[%clk 0:02:34]}  exd4 {[%clk 0:02:40]} 6. exd4 {[%clk 0:02:33]}  Bg4 {[%clk 0:02:40]} 7. Be3 {[%clk 0:02:33]}  Bxf3 {[%clk 0:02:17]} 8. gxf3 {[%clk 0:02:27]}  O-O-O {[%clk 0:01:38]} 9. Nc3 {[%clk 0:02:27]}  Bb4 {[%clk 0:01:36]} 10. Bh3+ {[%clk 0:02:26]}  Kb8 {[%clk 0:01:32]} 11. O-O {[%clk 0:02:25]}  Qh5 {[%clk 0:01:23]} 12. Bg4 {[%clk 0:02:19]}  Qg6 {[%clk 0:01:22]} 13. Qb1 {[%clk 0:02:15]}  Nxd4 {[%clk 0:01:16]} 14. Qxg6 {[%clk 0:02:02]}  hxg6 {[%clk 0:01:09]} 15. Rfd1 {[%clk 0:01:56]}  c5 {[%clk 0:00:52]} 16. Bf4+ {[%clk 0:01:52]}  Ka8 {[%clk 0:00:50]} 17. Bc7 {[%clk 0:01:48]}  Re8 {[%clk 0:00:48]} 18. Rxd4 {[%clk 0:01:18]}  cxd4 {[%clk 0:00:45]} 19. Nd5 {[%clk 0:01:17]}  Re1+ {[%clk 0:00:39]} 20. Rxe1 {[%clk 0:01:15]}  Bxe1 {[%clk 0:00:40]} 21. Kf1 {[%clk 0:01:15]}  Bd2 {[%clk 0:00:38]} 22. Ke2 {[%clk 0:01:15]}  Bc1 {[%clk 0:00:37]} 23. b3 {[%clk 0:01:11]}  f5 {[%clk 0:00:28]} 24. h3 {[%clk 0:01:10]}  fxg4 {[%clk 0:00:25]} 25. hxg4 {[%clk 0:01:11]}  Nf6 {[%clk 0:00:25]} 26. Ne7 {[%clk 0:01:10]}  Re8 {[%clk 0:00:24]} 27. Kd1 {[%clk 0:01:10]}  Rxe7 {[%clk 0:00:20]} 28. Kxc1 {[%clk 0:01:11]}  Rxc7+ {[%clk 0:00:20]} 0-1

[Event "January 9 Early 2024"]
[Site "https://www.chess.com"]
[Date "2024.01.11"]
[Round "3"]
[White "Sjugirov, Sanan"]
[Black "Yelisieiev, Yevhenii"]
[Result "1-0"]
[Board "68"]
[TimeControl "180+1"]
[WhiteFideId "4189302"]
[BlackFideId "14139642"]
[WhiteElo "2961"]
[BlackElo "2525"]
[WhiteTeam "HUN"]
[BlackTeam "GER"]
[WhiteClock "0:01:22"]
[BlackClock "0:00:26"]

1. e4 {[%clk 0:03:00]}  d6 {[%clk 0:02:57]} 2. d4 {[%clk 0:03:00]}  Nf6 {[%clk 0:02:57]} 3. Bd3 {[%clk 0:03:00]}  e5 {[%clk 0:02:58]} 4. c3 {[%clk 0:03:00]}  g6 {[%clk 0:02:58]} 5. Nf3 {[%clk 0:03:00]}  Nbd7 {[%clk 0:02:58]} 6. O-O {[%clk 0:03:01]}  Bg7 {[%clk 0:02:59]} 7. Re1 {[%clk 0:03:01]}  O-O {[%clk 0:02:58]} 8. Bc2 {[%clk 0:03:01]}  Re8 {[%clk 0:02:54]} 9. Nbd2 {[%clk 0:03:01]}  exd4 {[%clk 0:02:53]} 10. cxd4 {[%clk 0:03:00]}  c5 {[%clk 0:02:53]} 11. Nc4 {[%clk 0:02:23]}  d5 {[%clk 0:02:50]} 12. Nd6 {[%clk 0:02:19]}  Re6 {[%clk 0:02:23]} 13. e5 {[%clk 0:02:19]}  Ne8 {[%clk 0:02:05]} 14. Nxf7 {[%clk 0:02:15]}  Kxf7 {[%clk 0:02:05]} 15. Ng5+ {[%clk 0:02:15]}  Ke7 {[%clk 0:02:04]} 16. Nxe6 {[%clk 0:02:10]}  Kxe6 {[%clk 0:02:04]} 17. Qg4+ {[%clk 0:02:10]}  Kf7 {[%clk 0:02:02]} 18. e6+ {[%clk 0:02:10]}  Kg8 {[%clk 0:02:00]} 19. exd7 {[%clk 0:02:08]}  Bxd7 {[%clk 0:02:00]} 20. Qf3 {[%clk 0:02:05]}  Bxd4 {[%clk 0:01:36]} 21. Qxd5+ {[%clk 0:01:58]}  Kh8 {[%clk 0:01:37]} 22. Be3 {[%clk 0:01:46]}  Bc6 {[%clk 0:01:31]} 23. Bxd4+ {[%clk 0:01:44]}  cxd4 {[%clk 0:01:31]} 24. Qxd8 {[%clk 0:01:40]}  Rxd8 {[%clk 0:01:30]} 25. Rad1 {[%clk 0:01:41]}  Ng7 {[%clk 0:01:05]} 26. Be4 {[%clk 0:01:40]}  Rd7 {[%clk 0:01:00]} 27. Bxc6 {[%clk 0:01:40]}  bxc6 {[%clk 0:01:00]} 28. b4 {[%clk 0:01:39]}  Nf5 {[%clk 0:00:58]} 29. Re6 {[%clk 0:01:35]}  Rb7 {[%clk 0:00:53]} 30. a3 {[%clk 0:01:34]}  Rb6 {[%clk 0:00:53]} 31. Kf1 {[%clk 0:01:27]}  Ra6 {[%clk 0:00:43]} 32. g4 {[%clk 0:01:27]}  Nh4 {[%clk 0:00:44]} 33. Rxd4 {[%clk 0:01:27]}  Rxa3 {[%clk 0:00:43]} 34. Rd7 {[%clk 0:01:25]}  Ra1+ {[%clk 0:00:37]} 35. Ke2 {[%clk 0:01:25]}  Ra2+ {[%clk 0:00:37]} 36. Kd3 {[%clk 0:01:23]}  Ra3+ {[%clk 0:00:26]} 37. Kc4 {[%clk 0:01:22]} 1-0

[Event "January 9 Early 2024"]
[Site "https://www.chess.com"]
[Date "2024.01.11"]
[Round "3"]
[White "Zhao, Jun"]
[Black "Liu, Casper"]
[Result "1-0"]
[Board "70"]
[TimeControl "180+1"]
[WhiteFideId "8602522"]
[BlackFideId "1454153"]
[WhiteElo "2775"]
[BlackElo "2473"]
[WhiteTeam "CHN"]
[BlackTeam "DEN"]
[WhiteClock "0:01:12"]
[BlackClock "0:00:31"]

1. e4 {[%clk 0:02:55]}  c5 {[%clk 0:02:58]} 2. Nf3 {[%clk 0:02:55]}  d6 {[%clk 0:02:59]} 3. Nc3 {[%clk 0:02:53]}  Nf6 {[%clk 0:02:59]} 4. Bb5+ {[%clk 0:02:50]}  Bd7 {[%clk 0:02:58]} 5. Qe2 {[%clk 0:02:50]}  e5 {[%clk 0:02:55]} 6. Bxd7+ {[%clk 0:02:48]}  Nbxd7 {[%clk 0:02:56]} 7. d3 {[%clk 0:02:46]}  g6 {[%clk 0:02:55]} 8. Bg5 {[%clk 0:02:46]}  Bg7 {[%clk 0:02:56]} 9. Nd2 {[%clk 0:02:46]}  O-O {[%clk 0:02:56]} 10. Nc4 {[%clk 0:02:44]}  Qb8 {[%clk 0:02:36]} 11. Bxf6 {[%clk 0:02:41]}  Nxf6 {[%clk 0:02:34]} 12. a4 {[%clk 0:02:37]}  Re8 {[%clk 0:02:27]} 13. O-O {[%clk 0:02:34]}  Qd8 {[%clk 0:02:15]} 14. a5 {[%clk 0:02:18]}  d5 {[%clk 0:02:09]} 15. exd5 {[%clk 0:02:03]}  Nxd5 {[%clk 0:02:10]} 16. Nxd5 {[%clk 0:01:55]}  Qxd5 {[%clk 0:02:11]} 17. Qe4 {[%clk 0:01:55]}  Qxe4 {[%clk 0:01:43]} 18. dxe4 {[%clk 0:01:56]}  Rad8 {[%clk 0:01:44]} 19. c3 {[%clk 0:01:54]}  f5 {[%clk 0:01:27]} 20. f3 {[%clk 0:01:51]}  Rd3 {[%clk 0:01:13]} 21. Rfd1 {[%clk 0:01:46]}  Red8 {[%clk 0:01:12]} 22. Rxd3 {[%clk 0:01:46]}  Rxd3 {[%clk 0:01:13]} 23. Kf2 {[%clk 0:01:45]}  Kf7 {[%clk 0:01:03]} 24. Ke2 {[%clk 0:01:41]}  Rd7 {[%clk 0:01:04]} 25. a6 {[%clk 0:01:29]}  b5 {[%clk 0:00:54]} 26. Ne3 {[%clk 0:01:29]}  Ke6 {[%clk 0:00:51]} 27. Ra5 {[%clk 0:01:29]}  Rd6 {[%clk 0:00:47]} 28. Nd5 {[%clk 0:01:20]}  Bh6 {[%clk 0:00:47]} 29. Rxb5 {[%clk 0:01:17]}  fxe4 {[%clk 0:00:38]} 30. fxe4 {[%clk 0:01:17]}  Rd7 {[%clk 0:00:35]} 31. Rxc5 {[%clk 0:01:15]}  Bc1 {[%clk 0:00:34]} 32. Rc6+ {[%clk 0:01:12]}  Kf7 {[%clk 0:00:31]} 33. b4 {[%clk 0:01:12]} 1-0

[Event "January 9 Early 2024"]
[Site "https://www.chess.com"]
[Date "2024.01.11"]
[Round "3"]
[White "Balla, Tamas-Kristof"]
[Black "Koshulyan, Egor A."]
[Result "0-1"]
[Board "72"]
[TimeControl "180+1"]
[WhiteFideId "1208497"]
[BlackFideId "24237000"]
[WhiteElo "2463"]
[BlackElo "2673"]
[WhiteTeam "ROU"]
[BlackTeam "RUS"]
[WhiteClock "0:00:19"]
[BlackClock "0:00:48"]

1. e4 {[%clk 0:03:00]}  c5 {[%clk 0:02:58]} 2. c3 {[%clk 0:03:00]}  Nf6 {[%clk 0:02:57]} 3. e5 {[%clk 0:03:00]}  Nd5 {[%clk 0:02:58]} 4. d4 {[%clk 0:03:01]}  cxd4 {[%clk 0:02:59]} 5. Nf3 {[%clk 0:03:01]}  Nc6 {[%clk 0:02:59]} 6. cxd4 {[%clk 0:03:01]}  d6 {[%clk 0:02:59]} 7. Bc4 {[%clk 0:03:02]}  e6 {[%clk 0:03:00]} 8. O-O {[%clk 0:02:57]}  Be7 {[%clk 0:03:00]} 9. Qe2 {[%clk 0:02:57]}  O-O {[%clk 0:02:59]} 10. Rd1 {[%clk 0:02:57]}  Bd7 {[%clk 0:02:53]} 11. a3 {[%clk 0:02:42]}  Na5 {[%clk 0:02:49]} 12. Bxd5 {[%clk 0:02:32]}  exd5 {[%clk 0:02:48]} 13. Nc3 {[%clk 0:02:33]}  Be6 {[%clk 0:02:39]} 14. Bf4 {[%clk 0:02:27]}  Re8 {[%clk 0:02:18]} 15. Nb5 {[%clk 0:01:51]}  dxe5 {[%clk 0:01:45]} 16. Bxe5 {[%clk 0:01:49]}  Nc6 {[%clk 0:01:35]} 17. Bg3 {[%clk 0:01:27]}  Rc8 {[%clk 0:01:34]} 18. Rac1 {[%clk 0:01:21]}  Qb6 {[%clk 0:01:31]} 19. Ne5 {[%clk 0:01:01]}  Bf8 {[%clk 0:00:58]} 20. Qd3 {[%clk 0:00:37]}  Na5 {[%clk 0:00:51]} 21. Rxc8 {[%clk 0:00:26]}  Rxc8 {[%clk 0:00:52]} 22. Nc3 {[%clk 0:00:27]}  Qxb2 {[%clk 0:00:50]} 23. f4 {[%clk 0:00:19]}  Rxc3 {[%clk 0:00:48]} 0-1